[Event "12ème open de Salon"]
[Site "Salon de Provence, France"]
[Date "2022.07.10"]
[Round "2.6"]
[White "Bonchristiani, Pierre"]
[Black "Gomez, Guy"]
[Result "1-0"]
[TimeControl "1 h 30 min + 30 s"]
[WhiteElo "1382"]
[BlackElo "1532"]

1. e4 {[%clk 01:30:57]} {[%emt 00:00:02]} e5 {[%clk 01:30:48]} {[%emt
00:00:13]} 2. Nf3 {[%clk 01:31:20]} {[%emt 00:00:07]} d6 {[%clk 01:31:10]}
{[%emt 00:00:07]} 3. d4 {[%clk 01:31:05]} {[%emt 00:00:46]} Nc6 {[%clk
01:30:29]} {[%emt 00:01:11]} 4. Bb5 {[%clk 01:26:02]} {[%emt 00:05:32]} Bd7
{[%clk 01:30:53]} {[%emt 00:00:06]} 5. O-O {[%clk 01:23:46]} {[%emt 00:02:46]}
Nf6 {[%clk 01:28:52]} {[%emt 00:02:31]} 6. Re1 {[%clk 01:22:08]} {[%emt
00:02:09]} a6 {[%clk 01:27:16]} {[%emt 00:02:05]} 7. Bc4 {[%clk 01:20:43]}
{[%emt 00:01:56]} h6 {[%clk 01:25:46]} {[%emt 00:02:02]} 8. h3 {[%clk
01:18:07]} {[%emt 00:03:05]} Be7 {[%clk 01:23:47]} {[%emt 00:02:28]} 9. c3
{[%clk 01:16:23]} {[%emt 00:02:14]} O-O {[%clk 01:19:03]} {[%emt 00:05:15]} 10.
Nbd2 {[%clk 01:15:39]} {[%emt 00:01:15]} Nh7 {[%clk 01:15:47]} {[%emt
00:03:46]} 11. Nf1 {[%clk 01:12:55]} {[%emt 00:03:14]} Bf6 {[%clk 01:10:28]}
{[%emt 00:05:48]} 12. Ng3 {[%clk 01:08:59]} {[%emt 00:04:26]} Ne7 {[%clk
01:10:00]} {[%emt 00:00:59]} 13. Be3 {[%clk 00:57:30]} {[%emt 00:11:58]} Ng5
{[%clk 00:56:51]} {[%emt 00:13:39]} 14. Nxg5 {[%clk 00:53:46]} {[%emt
00:04:15]} hxg5 {[%clk 00:56:26]} {[%emt 00:00:55]} 15. Qd2 {[%clk 00:47:16]}
{[%emt 00:06:59]} Ng6 {[%clk 00:55:53]} {[%emt 00:01:03]} 16. Rad1 {[%clk
00:41:32]} {[%emt 00:06:14]} g4 {[%clk 00:55:10]} {[%emt 00:01:13]} 17. hxg4
{[%clk 00:38:04]} {[%emt 00:03:58]} Bxg4 {[%clk 00:55:27]} {[%emt 00:00:12]} 18.
f3 {[%clk 00:38:10]} {[%emt 00:00:24]} Bh4 {[%clk 00:51:51]} {[%emt 00:04:06]}
19. Bf2 {[%clk 00:37:51]} {[%emt 00:00:50]} Bc8 {[%clk 00:51:25]} {[%emt
00:00:55]} 20. Ne2 {[%clk 00:29:40]} {[%emt 00:08:42]} Qf6 {[%clk 00:40:54]}
{[%emt 00:11:01]} 21. Qe3 {[%clk 00:23:25]} {[%emt 00:06:45]} Bg5 {[%clk
00:38:16]} {[%emt 00:03:08]} 22. Qd3 {[%clk 00:23:30]} {[%emt 00:00:25]} Nf4
{[%clk 00:34:07]} {[%emt 00:04:40]} 23. Nxf4 {[%clk 00:22:19]} {[%emt
00:01:41]} Bxf4 {[%clk 00:34:30]} {[%emt 00:00:07]} 24. Kf1 {[%clk 00:19:52]}
{[%emt 00:02:57]} Bd7 {[%clk 00:27:52]} {[%emt 00:07:07]} 25. Ke2 {[%clk
00:18:42]} {[%emt 00:01:40]} Rab8 {[%clk 00:24:33]} {[%emt 00:03:49]} 26. Rh1
{[%clk 00:15:51]} {[%emt 00:03:22]} b5 {[%clk 00:24:23]} {[%emt 00:00:39]} 27.
Bb3 {[%clk 00:16:06]} {[%emt 00:00:15]} b4 {[%clk 00:24:28]} {[%emt 00:00:25]}
28. c4 {[%clk 00:15:49]} {[%emt 00:00:47]} a5 {[%clk 00:20:23]} {[%emt
00:04:34]} 29. Rh4 {[%clk 00:12:38]} {[%emt 00:03:41]} exd4 {[%clk 00:16:30]}
{[%emt 00:04:23]} 30. Rdh1 {[%clk 00:12:25]} {[%emt 00:00:43]} Bh6 {[%clk
00:16:07]} {[%emt 00:00:54]} 31. Bxd4 {[%clk 00:10:48]} {[%emt 00:02:07]} Qg6
{[%clk 00:16:20]} {[%emt 00:00:16]} 32. g4 {[%clk 00:10:33]} {[%emt 00:00:45]}
a4 {[%clk 00:13:33]} {[%emt 00:03:16]} 33. Bd1 {[%clk 00:09:54]} {[%emt
00:01:09]} f6 {[%clk 00:12:28]} {[%emt 00:01:35]} 34. Be3 {[%clk 00:09:08]}
{[%emt 00:01:17]} Bxe3 {[%clk 00:11:57]} {[%emt 00:01:01]} 35. Qd5+ {[%clk
00:09:21]} {[%emt 00:00:16]} 1-0

[Event "12ème open de Salon"]
[Site "Salon de Provence, France"]
[Date "2022.07.10"]
[Round "2.7"]
[White "Schmitz, Yves"]
[Black "Dos Santos, Matthieu"]
[Result "1-0"]
[TimeControl "1 h 30 min + 30 s"]
[WhiteElo "1463"]
[BlackElo "1199"]

1. e4 {[%clk 01:25:18]} {[%emt 00:05:41]} e5 {[%clk 01:30:59]} {[%emt
00:00:01]} 2. Nf3 {[%clk 01:25:35]} {[%emt 00:00:13]} Nc6 {[%clk 01:31:24]}
{[%emt 00:00:05]} 3. Bb5 {[%clk 01:25:38]} {[%emt 00:00:28]} a6 {[%clk
01:31:20]} {[%emt 00:00:32]} 4. Bxc6 {[%clk 01:25:14]} {[%emt 00:00:42]} dxc6
{[%clk 01:31:37]} {[%emt 00:00:26]} 5. O-O {[%clk 01:23:45]} {[%emt 00:01:59]}
Nf6 {[%clk 01:31:41]} {[%emt 00:00:26]} 6. Re1 {[%clk 01:23:06]} {[%emt
00:01:10]} Bd6 {[%clk 01:28:34]} {[%emt 00:03:37]} 7. c3 {[%clk 01:19:14]}
{[%emt 00:04:22]} O-O {[%clk 01:27:14]} {[%emt 00:01:49]} 8. d4 {[%clk
01:17:35]} {[%emt 00:02:09]} exd4 {[%clk 01:24:22]} {[%emt 00:03:22]} 9. e5
{[%clk 01:15:07]} {[%emt 00:02:58]} Nd5 {[%clk 01:20:16]} {[%emt 00:04:35]} 10.
exd6 {[%clk 01:15:01]} {[%emt 00:00:36]} cxd6 {[%clk 01:20:17]} {[%emt
00:00:30]} 11. Qxd4 {[%clk 01:13:59]} {[%emt 00:01:32]} Bf5 {[%clk 01:15:37]}
{[%emt 00:05:09]} 12. Na3 {[%clk 01:11:15]} {[%emt 00:03:15]} b5 {[%clk
01:11:57]} {[%emt 00:04:10]} 13. c4 {[%clk 01:10:16]} {[%emt 00:01:30]} Nb4
{[%clk 01:08:13]} {[%emt 00:04:14]} 14. cxb5 {[%clk 01:10:07]} {[%emt
00:00:38]} c5 {[%clk 01:06:15]} {[%emt 00:02:28]} 15. Qf4 {[%clk 01:06:29]}
{[%emt 00:04:06]} Nd3 {[%clk 01:04:45]} {[%emt 00:01:57]} 16. Qxf5 {[%clk
01:06:41]} {[%emt 00:00:23]} Nxe1 {[%clk 01:05:03]} {[%emt 00:00:13]} 17. Nxe1
{[%clk 01:06:59]} {[%emt 00:00:12]} Re8 {[%clk 01:05:08]} {[%emt 00:00:25]} 18.
Be3 {[%clk 01:04:53]} {[%emt 00:02:36]} Re5 {[%clk 01:00:34]} {[%emt 00:05:05]}
19. Qd3 {[%clk 01:03:35]} {[%emt 00:01:47]} axb5 {[%clk 01:00:16]} {[%emt
00:00:48]} 20. Nxb5 {[%clk 01:03:08]} {[%emt 00:00:57]} d5 {[%clk 00:58:25]}
{[%emt 00:02:22]} 21. g3 {[%clk 01:00:33]} {[%emt 00:03:05]} Ra5 {[%clk
00:55:09]} {[%emt 00:03:44]} 22. Bf4 {[%clk 00:58:14]} {[%emt 00:02:49]} Re6
{[%clk 00:50:51]} {[%emt 00:04:48]} 23. Bc7 {[%clk 00:58:11]} {[%emt 00:00:33]}
Qa8 {[%clk 00:50:18]} {[%emt 00:01:03]} 24. Bxa5 {[%clk 00:58:20]} {[%emt
00:00:20]} Qxa5 {[%clk 00:50:28]} {[%emt 00:00:20]} 25. Nf3 {[%clk 00:57:27]}
{[%emt 00:01:24]} Rb6 {[%clk 00:48:56]} {[%emt 00:02:02]} 26. a4 {[%clk
00:56:14]} {[%emt 00:01:43]} g6 {[%clk 00:47:57]} {[%emt 00:01:29]} 27. Ne5
{[%clk 00:55:25]} {[%emt 00:01:19]} Qa8 {[%clk 00:44:43]} {[%emt 00:03:44]} 28.
a5 {[%clk 00:53:42]} {[%emt 00:02:14]} c4 {[%clk 00:43:00]} {[%emt 00:02:13]}
29. Nc7 {[%emt 00:01:11]} Qb7 {[%clk 00:42:44]} {[%emt 00:00:44]} 30. Qxd5
{[%clk 00:53:02]} {[%emt 00:00:31]} Rxb2 {[%clk 00:41:07]} {[%emt 00:02:06]} 31.
Qxf7+ {[%clk 00:53:10]} {[%emt 00:00:22]} Kh8 {[%clk 00:41:03]} {[%emt
00:00:35]} 32. Qf8# {[%clk 00:52:55]} {[%emt 00:00:08]} 1-0

[Event "12ème open de Salon"]
[Site "Salon de Provence, France"]
[Date "2022.07.10"]
[Round "3.1"]
[White "Chaumet, Etienne"]
[Black "Busson, Benoit"]
[Result "1-0"]
[TimeControl "1 h 30 min + 30 s"]
[WhiteElo "1809"]
[BlackElo "1871"]

1. e4 {[%clk 01:30:51]} {[%emt 00:00:07]} e5 {[%clk 01:29:22]} {[%emt
00:01:39]} 2. Nf3 {[%clk 01:31:11]} {[%emt 00:00:11]} Nc6 {[%clk 01:29:44]}
{[%emt 00:00:08]} 3. Bb5 {[%clk 01:31:32]} {[%emt 00:00:08]} a6 {[%clk
01:29:56]} {[%emt 00:00:19]} 4. Ba4 {[%clk 01:31:52]} {[%emt 00:00:10]} d6
{[%clk 01:30:20]} {[%emt 00:00:06]} 5. c3 {[%clk 01:25:29]} {[%emt 00:06:53]}
f5 {[%clk 01:30:15]} {[%emt 00:00:35]} 6. exf5 {[%clk 01:25:00]} {[%emt
00:00:59]} Bxf5 {[%clk 01:30:36]} {[%emt 00:00:10]} 7. O-O {[%clk 01:22:20]}
{[%emt 00:03:09]} Bd3 {[%clk 01:25:48]} {[%emt 00:05:18]} 8. Re1 {[%clk
01:22:32]} {[%emt 00:00:17]} Nf6 {[%clk 01:25:22]} {[%emt 00:00:57]} 9. Nd4
{[%clk 01:16:32]} {[%emt 00:06:30]} Kd7 {[%clk 01:14:52]} {[%emt 00:11:01]} 10.
Qb3 {[%clk 01:01:07]} {[%emt 00:15:54]} Kc8 {[%clk 01:12:51]} {[%emt 00:02:31]}
11. Nxc6 {[%clk 00:57:57]} {[%emt 00:03:40]} bxc6 {[%clk 01:13:11]} {[%emt
00:00:10]} 12. Bxc6 {[%clk 00:56:44]} {[%emt 00:01:44]} Rb8 {[%clk 01:12:15]}
{[%emt 00:01:25]} 13. Qe6+ {[%clk 00:55:35]} {[%emt 00:01:38]} Nd7 {[%clk
01:12:38]} {[%emt 00:00:07]} 14. Re3 {[%clk 00:53:03]} {[%emt 00:03:02]} Bb5
{[%clk 01:11:25]} {[%emt 00:01:43]} 15. Bd5 {[%clk 00:49:04]} {[%emt 00:04:29]}
Qf6 {[%clk 01:04:52]} {[%emt 00:07:03]} 16. Qe8+ {[%clk 00:45:54]} {[%emt
00:03:42]} Qd8 {[%clk 01:05:10]} {[%emt 00:00:12]} 17. Qxd8+ {[%clk 00:38:45]}
{[%emt 00:07:39]} Kxd8 {[%clk 01:05:32]} {[%emt 00:00:08]} 18. b3 {[%clk
00:35:52]} {[%emt 00:03:23]} Nf6 {[%clk 01:00:40]} {[%emt 00:05:22]} 19. Bf3
{[%clk 00:35:14]} {[%emt 00:01:07]} g6 {[%clk 01:00:18]} {[%emt 00:00:52]} 20.
c4 {[%clk 00:33:29]} {[%emt 00:02:15]} Bd7 {[%clk 01:00:19]} {[%emt 00:00:29]}
21. Bb2 {[%clk 00:32:28]} {[%emt 00:01:32]} Bh6 {[%clk 00:57:11]} {[%emt
00:03:38]} 22. Re1 {[%clk 00:31:44]} {[%emt 00:01:14]} c5 {[%clk 00:56:24]}
{[%emt 00:01:17]} 23. d3 {[%clk 00:28:20]} {[%emt 00:03:54]} Bf5 {[%clk
00:50:15]} {[%emt 00:06:39]} 24. Nc3 {[%clk 00:25:50]} {[%emt 00:03:00]} Kd7
{[%clk 00:39:01]} {[%emt 00:11:44]} 25. Rad1 {[%clk 00:24:55]} {[%emt
00:01:25]} Rhe8 {[%clk 00:33:02]} {[%emt 00:06:28]} 26. h3 {[%clk 00:22:15]}
{[%emt 00:03:11]} Bg7 {[%clk 00:32:36]} {[%emt 00:00:57]} 27. Nd5 {[%clk
00:20:42]} {[%emt 00:02:03]} Nxd5 {[%clk 00:30:21]} {[%emt 00:02:44]} 28. Bxd5
{[%clk 00:20:37]} {[%emt 00:00:36]} a5 {[%clk 00:27:57]} {[%emt 00:02:53]} 29.
Bc3 {[%clk 00:18:13]} {[%emt 00:02:55]} a4 {[%clk 00:27:55]} {[%emt 00:00:31]}
30. g4 {[%clk 00:17:02]} {[%emt 00:01:42]} Be6 {[%clk 00:28:12]} {[%emt
00:00:13]} 31. Bxe6+ {[%clk 00:17:15]} {[%emt 00:00:17]} Rxe6 {[%clk 00:28:17]}
{[%emt 00:00:25]} 32. bxa4 {[%clk 00:17:02]} {[%emt 00:00:43]} Bh6 {[%clk
00:25:44]} {[%emt 00:03:03]} 33. Rb1 {[%clk 00:15:53]} {[%emt 00:01:39]} Ree8
{[%clk 00:24:59]} {[%emt 00:01:15]} 34. f3 {[%clk 00:14:02]} {[%emt 00:02:21]}
Bg5 {[%clk 00:23:23]} {[%emt 00:02:06]} 35. a5 {[%clk 00:13:35]} {[%emt
00:00:57]} Rec8 {[%clk 00:23:18]} {[%emt 00:00:34]} 36. a4 {[%clk 00:12:51]}
{[%emt 00:01:13]} Ra8 {[%clk 00:21:48]} {[%emt 00:02:01]} 37. Rb5 {[%emt
00:02:43]} h5 {[%clk 00:20:42]} 38. gxh5 {[%clk 00:09:58]} {[%emt 00:02:46]}
gxh5 {[%clk 00:21:07]} {[%emt 00:00:05]} 39. Rb7+ {[%clk 00:10:10]} {[%emt
00:00:18]} Rc7 {[%clk 00:20:32]} {[%emt 00:01:05]} 40. Reb1 {[%clk 00:09:37]}
{[%emt 00:01:03]} Kc8 {[%clk 00:17:10]} {[%emt 00:03:52]} 41. R7b6 {[%clk
00:07:48]} {[%emt 00:02:19]} Kd7 {[%clk 00:17:06]} {[%emt 00:00:34]} 42. R1b2
{[%clk 00:05:49]} {[%emt 00:02:29]} Be3+ {[%clk 00:15:44]} {[%emt 00:01:52]} 43.
Kf1 {[%clk 00:05:57]} {[%emt 00:00:22]} Bd4 {[%clk 00:15:57]} {[%emt 00:00:17]}
44. Bxd4 {[%clk 00:06:04]} {[%emt 00:00:23]} cxd4 {[%clk 00:15:29]} {[%emt
00:00:57]} 45. a6 {[%clk 00:05:49]} {[%emt 00:00:45]} h4 {[%clk 00:15:08]}
{[%emt 00:00:53]} 46. Rg2 {[%clk 00:05:17]} {[%emt 00:01:01]} Rca7 {[%clk
00:05:36]} {[%emt 00:10:02]} 47. Rg6 {[%clk 00:04:57]} {[%emt 00:00:49]} Rxa6
{[%clk 00:05:43]} {[%emt 00:00:24]} 48. Rgxd6+ {[%clk 00:05:18]} {[%emt
00:00:09]} 1-0

[Event "12ème open de Salon"]
[Site "Salon de Provence, France"]
[Date "2022.07.10"]
[Round "3.2"]
[White "Bregier, Gerard"]
[Black "Lalic, Bogdan"]
[Result "0-1"]
[TimeControl "1 h 30 min + 30 s"]
[WhiteElo "1332"]
[BlackElo "2412"]

1. d4 {[%clk 01:30:46]} {[%emt 00:00:14]} Nf6 {[%clk 01:30:53]} {[%emt
00:00:07]} 2. Nc3 {[%clk 01:31:09]} {[%emt 00:00:07]} d5 {[%clk 01:31:17]}
{[%emt 00:00:05]} 3. Bf4 {[%clk 01:31:20]} {[%emt 00:00:20]} a6 {[%clk
01:31:39]} {[%emt 00:00:08]} 4. e3 {[%clk 01:31:20]} {[%emt 00:00:30]} e6
{[%clk 01:32:01]} {[%emt 00:00:08]} 5. Bd3 {[%clk 01:26:00]} {[%emt 00:05:50]}
b5 {[%clk 01:31:37]} {[%emt 00:00:52]} 6. Nf3 {[%clk 01:25:08]} {[%emt
00:01:24]} Bb7 {[%clk 01:31:26]} {[%emt 00:00:40]} 7. Ne5 {[%clk 01:24:20]}
{[%emt 00:01:19]} c5 {[%clk 01:30:22]} {[%emt 00:01:34]} 8. dxc5 {[%clk
01:21:15]} {[%emt 00:03:35]} Bxc5 {[%clk 01:30:45]} {[%emt 00:00:06]} 9. Ne2
{[%clk 01:21:19]} {[%emt 00:00:20]} Bd6 {[%clk 01:29:22]} {[%emt 00:01:57]} 10.
Nd4 {[%clk 01:17:29]} {[%emt 00:04:22]} Qc7 {[%clk 01:27:38]} {[%emt 00:02:12]}
11. Ndf3 {[%clk 01:15:03]} {[%emt 00:02:57]} O-O {[%clk 01:27:45]} {[%emt
00:00:22]} 12. g4 {[%clk 01:13:52]} {[%emt 00:01:43]} Nc6 {[%clk 01:24:02]}
{[%emt 00:04:12]} 13. g5 {[%clk 01:12:45]} {[%emt 00:01:37]} Ne4 {[%clk
01:23:32]} {[%emt 00:01:00]} 14. Nxc6 {[%clk 01:10:40]} {[%emt 00:02:35]} Bxf4
{[%clk 01:23:37]} {[%emt 00:00:25]} 15. exf4 {[%clk 01:09:11]} {[%emt
00:02:00]} Bxc6 {[%clk 01:23:59]} {[%emt 00:00:08]} 16. Bxe4 {[%clk 01:06:46]}
{[%emt 00:02:55]} dxe4 {[%clk 01:24:21]} {[%emt 00:00:07]} 17. Ne5 {[%clk
01:05:11]} {[%emt 00:02:05]} f6 {[%clk 01:22:40]} {[%emt 00:02:11]} 18. Nxc6
{[%emt 00:06:22]} Qxc6 {[%emt 00:00:06]} 19. Rg1 {[%clk 00:56:56]} {[%emt
00:02:18]} Rad8 {[%clk 01:20:25]} {[%emt 00:02:44]} 20. Qe2 {[%clk 00:56:56]}
{[%emt 00:00:30]} f5 {[%clk 01:20:31]} {[%emt 00:00:24]} 21. c3 {[%clk
00:53:51]} {[%emt 00:03:35]} Qc7 {[%clk 01:20:28]} {[%emt 00:00:31]} 22. Qe3
{[%clk 00:53:08]} {[%emt 00:01:15]} Rd3 {[%clk 01:20:50]} {[%emt 00:00:08]} 23.
Qc1 {[%clk 00:52:50]} {[%emt 00:00:49]} e5 {[%clk 01:13:55]} {[%emt 00:07:25]}
24. Rg3 {[%clk 00:47:48]} {[%emt 00:05:32]} exf4 {[%clk 01:13:50]} {[%emt
00:00:34]} 25. Rxd3 {[%clk 00:47:22]} {[%emt 00:00:56]} exd3 {[%clk 01:14:19]}
{[%emt 00:00:02]} 26. Qd2 {[%clk 00:47:21]} {[%emt 00:00:30]} Re8+ {[%clk
01:14:14]} {[%emt 00:00:34]} 27. Kf1 {[%clk 00:47:04]} {[%emt 00:00:48]} Qc6
{[%clk 01:14:33]} {[%emt 00:00:10]} 28. Kg1 {[%clk 00:46:49]} {[%emt 00:00:46]}
Qf3 {[%clk 01:14:57]} {[%emt 00:00:06]} 29. Rd1 {[%clk 00:46:16]} {[%emt
00:01:02]} Re2 {[%clk 01:15:20]} {[%emt 00:00:08]} 30. Qxd3 {[%clk 00:46:03]}
{[%emt 00:00:43]} Qxf2+ {[%emt 00:00:46]} 0-1

[Event "12ème open de Salon"]
[Site "Salon de Provence, France"]
[Date "2022.07.10"]
[Round "3.4"]
[White "Roganova, Maxime"]
[Black "Tramarin, Matteo"]
[Result "0-1"]
[TimeControl "1 h 30 min + 30 s"]
[WhiteElo "1471"]
[BlackElo "1501"]

1. e4 {[%clk 01:30:31]} {[%emt 00:00:28]} Nf6 {[%clk 01:29:39]} {[%emt
00:01:22]} 2. e5 {[%clk 01:30:54]} {[%emt 00:00:08]} Nd5 {[%clk 01:29:42]}
{[%emt 00:00:27]} 3. d4 {[%clk 01:31:17]} {[%emt 00:00:08]} d6 {[%clk
01:30:02]} {[%emt 00:00:10]} 4. exd6 {[%clk 01:31:41]} {[%emt 00:00:05]} cxd6
{[%clk 01:30:22]} {[%emt 00:00:09]} 5. Nf3 {[%clk 01:31:41]} {[%emt 00:00:31]}
g6 {[%clk 01:30:37]} {[%emt 00:00:15]} 6. c3 {[%clk 01:31:24]} {[%emt
00:00:48]} Bg7 {[%clk 01:30:40]} {[%emt 00:00:26]} 7. Bd3 {[%clk 01:31:43]}
{[%emt 00:00:11]} Nc6 {[%clk 01:30:29]} {[%emt 00:00:41]} 8. Be3 {[%clk
01:31:10]} {[%emt 00:01:04]} Rb8 {[%clk 01:28:37]} {[%emt 00:02:21]} 9. O-O
{[%clk 01:30:50]} {[%emt 00:00:50]} O-O {[%clk 01:28:43]} {[%emt 00:00:24]} 10.
Nbd2 {[%clk 01:30:38]} {[%emt 00:00:42]} b5 {[%clk 01:28:47]} {[%emt 00:00:26]}
11. a3 {[%clk 01:30:46]} {[%emt 00:00:23]} a5 {[%clk 01:28:27]} {[%emt
00:00:49]} 12. Rc1 {[%clk 01:31:04]} {[%emt 00:00:12]} Bd7 {[%clk 01:28:20]}
{[%emt 00:00:37]} 13. Qc2 {[%clk 01:27:53]} {[%emt 00:03:41]} b4 {[%clk
01:27:06]} {[%emt 00:01:44]} 14. c4 {[%clk 01:28:02]} {[%emt 00:00:21]} Nc7
{[%clk 01:26:53]} {[%emt 00:00:43]} 15. h4 {[%clk 01:25:51]} {[%emt 00:02:42]}
Bg4 {[%clk 01:24:23]} {[%emt 00:02:59]} 16. Nh2 {[%clk 01:24:11]} {[%emt
00:02:10]} Qc8 {[%clk 01:24:34]} {[%emt 00:00:19]} 17. Ndf3 {[%clk 01:23:04]}
{[%emt 00:01:38]} e5 {[%clk 01:19:21]} {[%emt 00:05:43]} 18. c5 {[%clk
01:06:37]} {[%emt 00:16:57]} Nxd4 {[%clk 01:14:10]} {[%emt 00:05:41]} 19. Bxd4
{[%clk 01:06:54]} {[%emt 00:00:13]} exd4 {[%clk 01:14:00]} {[%emt 00:00:40]} 20.
cxd6 {[%clk 01:07:06]} {[%emt 00:00:19]} Nb5 {[%clk 01:12:36]} {[%emt
00:01:53]} 21. Qxc8 {[%clk 01:04:53]} {[%emt 00:02:43]} Bxc8 {[%clk 01:12:45]}
{[%emt 00:00:21]} 22. Bxb5 {[%clk 01:03:17]} {[%emt 00:02:06]} Rxb5 {[%clk
01:12:16]} {[%emt 00:00:59]} 23. axb4 {[%clk 00:57:16]} {[%emt 00:06:32]} axb4
{[%clk 01:10:43]} {[%emt 00:02:03]} 24. Rfd1 {[%clk 00:56:37]} {[%emt
00:01:08]} Rd5 {[%clk 01:10:02]} {[%emt 00:01:11]} 25. Rc4 {[%clk 00:56:57]}
{[%emt 00:00:11]} Rxd6 {[%clk 01:09:40]} {[%emt 00:00:51]} 26. Rxb4 {[%clk
00:53:56]} {[%emt 00:03:32]} Rfd8 {[%clk 01:06:53]} {[%emt 00:03:17]} 27. Nf1
{[%clk 00:50:28]} {[%emt 00:03:59]} Ba6 {[%clk 01:03:02]} {[%emt 00:04:20]} 28.
N1d2 {[%clk 00:49:47]} {[%emt 00:01:11]} Be2 {[%clk 01:02:29]} {[%emt
00:01:04]} 29. Re1 {[%clk 00:49:56]} {[%emt 00:00:20]} d3 {[%clk 01:02:51]}
{[%emt 00:00:08]} 30. g3 {[%clk 00:44:19]} {[%emt 00:06:07]} Rc6 {[%clk
01:01:39]} {[%emt 00:01:42]} 31. Kg2 {[%clk 00:39:31]} {[%emt 00:05:19]} Rc2
{[%clk 01:01:46]} {[%emt 00:00:21]} 32. Rb3 {[%clk 00:34:36]} {[%emt 00:05:26]}
Bxb2 {[%clk 00:59:23]} {[%emt 00:02:53]} 33. Rb5 {[%clk 00:34:22]} {[%emt
00:00:44]} Bc3 {[%clk 00:59:18]} {[%emt 00:00:35]} 0-1

[Event "12ème open de Salon"]
[Site "Salon de Provence, France"]
[Date "2022.07.10"]
[Round "3.5"]
[White "Piquemal, Maxence"]
[Black "Bonchristiani, Pierre"]
[Result "1-0"]
[TimeControl "1 h 30 min + 30 s"]
[WhiteElo "1668"]
[BlackElo "1382"]

1. d4 {[%clk 01:30:56]} {[%emt 00:00:04]} d5 {[%clk 01:30:42]} {[%emt
00:00:18]} 2. c4 {[%clk 01:31:20]} {[%emt 00:00:07]} c6 {[%clk 01:31:06]}
{[%emt 00:00:05]} 3. Nc3 {[%clk 01:31:26]} {[%emt 00:00:25]} Nf6 {[%clk
01:31:29]} {[%emt 00:00:06]} 4. Bf4 {[%clk 01:30:17]} {[%emt 00:01:39]} e6
{[%clk 01:31:49]} {[%emt 00:00:09]} 5. e3 {[%clk 01:30:16]} {[%emt 00:00:32]}
Bd6 {[%clk 01:32:01]} {[%emt 00:00:16]} 6. Bg3 {[%clk 01:28:39]} {[%emt
00:02:09]} O-O {[%clk 01:32:06]} {[%emt 00:00:24]} 7. Bd3 {[%clk 01:26:38]}
{[%emt 00:02:31]} dxc4 {[%clk 01:31:14]} {[%emt 00:01:22]} 8. Bxc4 {[%clk
01:26:58]} {[%emt 00:00:10]} b5 {[%clk 01:30:48]} {[%emt 00:00:55]} 9. Bd3
{[%clk 01:23:04]} {[%emt 00:04:25]} Bb7 {[%clk 01:29:56]} {[%emt 00:01:20]} 10.
Nf3 {[%clk 01:18:28]} {[%emt 00:05:07]} Qc7 {[%clk 01:27:55]} {[%emt 00:02:30]}
11. Rc1 {[%clk 01:13:27]} {[%emt 00:05:33]} Nbd7 {[%clk 01:27:16]} {[%emt
00:01:08]} 12. O-O {[%clk 01:07:41]} {[%emt 00:06:16]} a6 {[%clk 01:25:53]}
{[%emt 00:01:53]} 13. Bxd6 {[%clk 00:55:21]} {[%emt 00:12:51]} Qxd6 {[%clk
01:25:00]} {[%emt 00:01:23]} 14. Ne4 {[%clk 00:54:23]} {[%emt 00:01:28]} Qe7
{[%clk 01:20:09]} {[%emt 00:05:21]} 15. Nxf6+ {[%clk 00:45:39]} {[%emt
00:09:14]} Nxf6 {[%clk 01:18:28]} {[%emt 00:02:11]} 16. Ne5 {[%clk 00:42:45]}
{[%emt 00:03:24]} Rac8 {[%emt 00:04:02]} 17. Rc5 {[%clk 00:33:16]} {[%emt
00:09:40]} Nd7 {[%clk 01:00:51]} {[%emt 00:14:54]} 18. Nxd7 {[%clk 00:31:59]}
{[%emt 00:01:48]} Qxd7 {[%clk 01:01:11]} {[%emt 00:00:10]} 19. Qc2 {[%clk
00:25:24]} {[%emt 00:07:06]} g6 {[%clk 00:56:51]} {[%emt 00:04:49]} 20. Be4
{[%clk 00:22:32]} {[%emt 00:03:22]} Rc7 {[%emt 00:21:44]} 21. Rc1 {[%clk
00:20:10]} Rfc8 {[%clk 00:38:48]} {[%emt 00:00:11]} 22. b4 {[%clk 00:18:27]}
{[%emt 00:02:14]} Qd6 {[%clk 00:35:33]} {[%emt 00:03:46]} 23. g3 {[%clk
00:15:52]} {[%emt 00:03:04]} Kf8 {[%clk 00:35:22]} {[%emt 00:00:41]} 24. a3
{[%clk 00:13:57]} {[%emt 00:02:25]} Ke7 {[%clk 00:35:16]} {[%emt 00:00:36]} 25.
d5 {[%clk 00:09:06]} {[%emt 00:05:21]} Ba8 {[%clk 00:26:27]} {[%emt 00:09:19]}
26. dxc6 {[%clk 00:07:46]} {[%emt 00:01:50]} Rd8 {[%clk 00:25:14]} {[%emt
00:01:42]} 27. Qc3 {[%clk 00:04:23]} {[%emt 00:03:54]} f6 {[%clk 00:22:12]}
{[%emt 00:03:32]} 28. Bf3 {[%clk 00:03:04]} {[%emt 00:01:49]} Qd3 {[%clk
00:18:55]} {[%emt 00:03:48]} 29. Qb2 {[%clk 00:01:41]} {[%emt 00:01:53]} g5
{[%clk 00:16:05]} {[%emt 00:03:20]} 30. Rd1 {[%clk 00:01:14]} {[%emt 00:00:58]}
Qg6 {[%clk 00:15:59]} {[%emt 00:00:36]} 31. Rxd8 {[%clk 00:01:31]} {[%emt
00:00:12]} Kxd8 {[%clk 00:16:28]} {[%emt 00:00:02]} 32. Qd4+ {[%clk 00:01:47]}
{[%emt 00:00:14]} Ke7 {[%clk 00:16:09]} {[%emt 00:00:48]} 33. Rc3 {[%clk
00:01:11]} {[%emt 00:01:07]} Qe8 {[%clk 00:10:40]} {[%emt 00:06:00]} 34. Qc5+
{[%clk 00:01:18]} {[%emt 00:00:22]} Kf7 {[%clk 00:10:28]} {[%emt 00:00:41]} 35.
Bh5+ {[%clk 00:01:37]} {[%emt 00:00:12]} 1-0